Workbook

Sheet Лист1
B1: Дата | C1: 2019-01-01 | D1: 2019-01-02 | E1: 2019-01-03 | F1: 2019-01-04 | G1: 2019-01-05 | H1: 2019-01-06 | I1: 2019-01-07 | J1: 2019-01-08 | K1: 2019-01-09 | L1: 2019-01-10 | M1: 2019-01-11 | N1: 2019-01-12 | O1: 2019-01-13 | P1: 2019-01-14 | Q1: 2019-01-15 | R1: 2019-01-16 | S1: 2019-01-17 | T1: 2019-01-18 | U1: 2019-01-19 | V1: 2019-01-20 | W1: 2019-01-21 | X1: 2019-01-22 | Y1: 2019-01-23 | Z1: 2019-01-24 | AA1: 2019-01-25 | AB1: 2019-01-26 | AC1: 2019-01-27 | AD1: 2019-01-28 | AE1: 2019-01-29 | AF1: 2019-01-30
A2: Наименование
A4: Машина ГА3-51
A5: Двигатель
B6: наработка | C6: 10 | D6: 8 | E6: 9 | F6: 6.5 | G6: 10 | H6: 8 | I6: 4 | J6: 6 | K6: 8 | L6: 6 | M6: 12 | N6: 10 | O6: 10 | P6: 7 | Q6: 6 | R6: 18 | S6: 10 | T6: 5 | U6: 4 | V6: 8 | W6: 6 | X6: 7 | Y6: 8 | Z6: 2 | AA6: 3 | AB6: 5 | AC6: 2 | AD6: 4 | AE6: 2 | AF6: 2
B7: ТО
B8: Остаток | C8: =C6-C7 -> 10 | D8: =C8+D6-D7 -> 18 | E8: =D8+E6-E7 -> 27 | F8: 33.5 | G8: 43.5 | H8: 51.5 | I8: 55.5 | J8: 61.5 | K8: 69.5 | L8: 75.5 | M8: 87.5 | N8: 97.5 | O8: 107.5 | P8: 114.5 | Q8: 120.5 | R8: 138.5 | S8: 148.5 | T8: 153.5 | U8: 157.5 | V8: 165.5 | W8: 171.5 | X8: 178.5 | Y8: 186.5 | Z8: 188.5 | AA8: 191.5 | AB8: 196.5 | AC8: 198.5 | AD8: 202.5 | AE8: 204.5 | AF8: 206.5
A9: передний мост
B10: наработка | C10: 8 | D10: 7 | E10: 10 | F10: 8.5 | G10: 7.2 | H10: 6 | I10: 3 | J10: 6 | K10: 12 | L10: 8 | M10: 10 | N10: 12 | O10: 9 | P10: 9 | Q10: 6 | R10: 23 | S10: 11 | T10: 10 | U10: 5 | V10: 11 | W10: 8 | X10: 6 | Y10: 13 | Z10: 0 | AA10: 2 | AB10: 4 | AC10: 5 | AD10: 6 | AE10: 5 | AF10: 4
B11: ТО
B12: Остаток | C12: =C10-C11 -> 8 | D12: =C12+D10-D11 -> 15 | E12: =D12+E10-E11 -> 25 | F12: =E12+F10-F11 -> 33.5 | G12: =F12+G10-G11 -> 40.7 | H12: =G12+H10-H11 -> 46.7 | I12: =H12+I10-I11 -> 49.7 | J12: =I12+J10-J11 -> 55.7 | K12: =J12+K10-K11 -> 67.7 | L12: =K12+L10-L11 -> 75.7 | M12: =L12+M10-M11 -> 85.7 | N12: =M12+N10-N11 -> 97.7 | O12: =N12+O10-O11 -> 106.7 | P12: =O12+P10-P11 -> 115.7 | Q12: =P12+Q10-Q11 -> 121.7 | R12: =Q12+R10-R11 -> 144.7 | S12: =R12+S10-S11 -> 155.7 | T12: =S12+T10-T11 -> 165.7 | U12: =T12+U10-U11 -> 170.7 | V12: =U12+V10-V11 -> 181.7 | W12: =V12+W10-W11 -> 189.7 | X12: =W12+X10-X11 -> 195.7 | Y12: =X12+Y10-Y11 -> 208.7 | Z12: =Y12+Z10-Z11 -> 208.7 | AA12: =Z12+AA10-AA11 -> 210.7 | AB12: =AA12+AB10-AB11 -> 214.7 | AC12: =AB12+AC10-AC11 -> 219.7 | AD12: =AC12+AD10-AD11 -> 225.7 | AE12: =AD12+AE10-AE11 -> 230.7 | AF12: =AE12+AF10-AF11 -> 234.7
A13: задний мост
B14: наработка | C14: 13 | D14: 13 | E14: 8 | F14: 8.5 | G14: 4.2 | H14: 10 | I14: 8 | J14: 8 | K14: 11 | L14: 4 | M14: 12 | N14: 10 | O14: 10 | P14: 10 | Q14: 7 | R14: 18 | S14: 12 | T14: 8 | U14: 8 | V14: 9 | W14: 11 | X14: 5 | Y14: 6 | Z14: 1 | AA14: 2 | AB14: 4 | AC14: 5 | AD14: 2 | AE14: 1 | AF14: 7
B15: ТО
B16: Остаток | C16: =C14-C15 -> 13 | D16: =C16+D14-D15 -> 26 | E16: =D16+E14-E15 -> 34 | F16: =E16+F14-F15 -> 42.5 | G16: =F16+G14-G15 -> 46.7 | H16: =G16+H14-H15 -> 56.7 | I16: =H16+I14-I15 -> 64.7 | J16: =I16+J14-J15 -> 72.7 | K16: =J16+K14-K15 -> 83.7 | L16: =K16+L14-L15 -> 87.7 | M16: =L16+M14-M15 -> 99.7 | N16: =M16+N14-N15 -> 109.7 | O16: =N16+O14-O15 -> 119.7 | P16: =O16+P14-P15 -> 129.7 | Q16: =P16+Q14-Q15 -> 136.7 | R16: =Q16+R14-R15 -> 154.7 | S16: =R16+S14-S15 -> 166.7 | T16: =S16+T14-T15 -> 174.7 | U16: =T16+U14-U15 -> 182.7 | V16: =U16+V14-V15 -> 191.7 | W16: =V16+W14-W15 -> 202.7 | X16: =W16+X14-X15 -> 207.7 | Y16: =X16+Y14-Y15 -> 213.7 | Z16: =Y16+Z14-Z15 -> 214.7 | AA16: =Z16+AA14-AA15 -> 216.7 | AB16: =AA16+AB14-AB15 -> 220.7 | AC16: =AB16+AC14-AC15 -> 225.7 | AD16: =AC16+AD14-AD15 -> 227.7 | AE16: =AD16+AE14-AE15 -> 228.7 | AF16: =AE16+AF14-AF15 -> 235.7
A19: Машина ЗИЛ
A20: Двигатель
B21: наработка | C21: 10 | D21: 8 | E21: 9 | F21: 6.5 | G21: 3.2 | H21: 8 | I21: 4 | J21: 6 | K21: 8 | L21: 6 | M21: 12 | N21: 10 | O21: 10 | P21: 7 | Q21: 6 | R21: 18 | S21: 10 | T21: 5 | U21: 4 | V21: 8 | W21: 6 | X21: 7 | Y21: 8 | Z21: 2 | AA21: 3 | AB21: 5 | AC21: 2 | AD21: 4 | AE21: 2 | AF21: 2
B22: ТО
B23: Остаток | C23: =C21-C22 -> 10 | D23: =C23+D21-D22 -> 18 | E23: =D23+E21-E22 -> 27 | F23: =E23+F21-F22 -> 33.5 | G23: =F23+G21-G22 -> 36.7 | H23: =G23+H21-H22 -> 44.7 | I23: =H23+I21-I22 -> 48.7 | J23: =I23+J21-J22 -> 54.7 | K23: =J23+K21-K22 -> 62.7 | L23: =K23+L21-L22 -> 68.7 | M23: =L23+M21-M22 -> 80.7 | N23: =M23+N21-N22 -> 90.7 | O23: =N23+O21-O22 -> 100.7 | P23: =O23+P21-P22 -> 107.7 | Q23: =P23+Q21-Q22 -> 113.7 | R23: =Q23+R21-R22 -> 131.7 | S23: =R23+S21-S22 -> 141.7 | T23: =S23+T21-T22 -> 146.7 | U23: =T23+U21-U22 -> 150.7 | V23: =U23+V21-V22 -> 158.7 | W23: =V23+W21-W22 -> 164.7 | X23: =W23+X21-X22 -> 171.7 | Y23: =X23+Y21-Y22 -> 179.7 | Z23: =Y23+Z21-Z22 -> 181.7 | AA23: =Z23+AA21-AA22 -> 184.7 | AB23: =AA23+AB21-AB22 -> 189.7 | AC23: =AB23+AC21-AC22 -> 191.7 | AD23: =AC23+AD21-AD22 -> 195.7 | AE23: =AD23+AE21-AE22 -> 197.7 | AF23: =AE23+AF21-AF22 -> 199.7
A24: передний мост
B25: наработка | C25: 8 | D25: 7 | E25: 10 | F25: 8.5 | G25: 7.2 | H25: 6 | I25: 3 | J25: 6 | K25: 12 | L25: 8 | M25: 10 | N25: 12 | O25: 9 | P25: 9 | Q25: 6 | R25: 23 | S25: 11 | T25: 10 | U25: 5 | V25: 11 | W25: 8 | X25: 6 | Y25: 13 | Z25: 0 | AA25: 2 | AB25: 4 | AC25: 5 | AD25: 6 | AE25: 5 | AF25: 4
B26: ТО
B27: Остаток | C27: =C25-C26 -> 8 | D27: =C27+D25-D26 -> 15 | E27: =D27+E25-E26 -> 25 | F27: =E27+F25-F26 -> 33.5 | G27: =F27+G25-G26 -> 40.7 | H27: =G27+H25-H26 -> 46.7 | I27: =H27+I25-I26 -> 49.7 | J27: =I27+J25-J26 -> 55.7 | K27: =J27+K25-K26 -> 67.7 | L27: =K27+L25-L26 -> 75.7 | M27: =L27+M25-M26 -> 85.7 | N27: =M27+N25-N26 -> 97.7 | O27: =N27+O25-O26 -> 106.7 | P27: =O27+P25-P26 -> 115.7 | Q27: =P27+Q25-Q26 -> 121.7 | R27: =Q27+R25-R26 -> 144.7 | S27: =R27+S25-S26 -> 155.7 | T27: =S27+T25-T26 -> 165.7 | U27: =T27+U25-U26 -> 170.7 | V27: =U27+V25-V26 -> 181.7 | W27: =V27+W25-W26 -> 189.7 | X27: =W27+X25-X26 -> 195.7 | Y27: =X27+Y25-Y26 -> 208.7 | Z27: =Y27+Z25-Z26 -> 208.7 | AA27: =Z27+AA25-AA26 -> 210.7 | AB27: =AA27+AB25-AB26 -> 214.7 | AC27: =AB27+AC25-AC26 -> 219.7 | AD27: =AC27+AD25-AD26 -> 225.7 | AE27: =AD27+AE25-AE26 -> 230.7 | AF27: =AE27+AF25-AF26 -> 234.7
A28: задний мост
B29: наработка | C29: 13 | D29: 5 | E29: 8 | F29: 10 | G29: 4.2 | H29: 10 | I29: 8 | J29: 8 | K29: 11 | L29: 4 | M29: 12 | N29: 10 | O29: 10 | P29: 10 | Q29: 7 | R29: 18 | S29: 12 | T29: 8 | U29: 8 | V29: 9 | W29: 11 | X29: 5 | Y29: 6 | Z29: 1 | AA29: 2 | AB29: 4 | AC29: 5 | AD29: 2 | AE29: 1 | AF29: 7
B30: ТО
B31: Остаток | C31: =C29-C30 -> 13 | D31: =C31+D29-D30 -> 18 | E31: =D31+E29-E30 -> 26 | F31: =E31+F29-F30 -> 36 | G31: =F31+G29-G30 -> 40.2 | H31: =G31+H29-H30 -> 50.2 | I31: =H31+I29-I30 -> 58.2 | J31: =I31+J29-J30 -> 66.2 | K31: =J31+K29-K30 -> 77.2 | L31: =K31+L29-L30 -> 81.2 | M31: =L31+M29-M30 -> 93.2 | N31: =M31+N29-N30 -> 103.2 | O31: =N31+O29-O30 -> 113.2 | P31: =O31+P29-P30 -> 123.2 | Q31: =P31+Q29-Q30 -> 130.2 | R31: =Q31+R29-R30 -> 148.2 | S31: =R31+S29-S30 -> 160.2 | T31: =S31+T29-T30 -> 168.2 | U31: =T31+U29-U30 -> 176.2 | V31: =U31+V29-V30 -> 185.2 | W31: =V31+W29-W30 -> 196.2 | X31: =W31+X29-X30 -> 201.2 | Y31: =X31+Y29-Y30 -> 207.2 | Z31: =Y31+Z29-Z30 -> 208.2 | AA31: =Z31+AA29-AA30 -> 210.2 | AB31: =AA31+AB29-AB30 -> 214.2 | AC31: =AB31+AC29-AC30 -> 219.2 | AD31: =AC31+AD29-AD30 -> 221.2 | AE31: =AD31+AE29-AE30 -> 222.2 | AF31: =AE31+AF29-AF30 -> 229.2

Sheet Лист2
A3: Наименование
